bitfinex/quotes_ETHUSD_20260313
["timestamp","ask_amount","ask_price","bid_price","bid_amount"]
[1773366301024,0.002,2127.5,2127.0,0.45237396]
[1773366301322,0.002,2127.6,2127.0,0.45237396]
[1773366301814,0.4519384,2127.5,2126.8,2.80246622]
[1773366302407,0.4539384,2127.4,2126.8,1.627]
[1773366303189,1.627137,2127.3,2126.8,1.627]
[1773366303635,1.627137,2127.3,2126.8,2.84948369]
[1773366303995,0.002,2127.2,2126.8,3.30185765]
[1773366304195,1.62902653,2127.5,2126.8,3.30185765]
[1773366304520,1.62902653,2127.5,2126.8,2.8024647]
[1773366305227,1.62902653,2127.5,2126.8,1.627]
[1773366305228,0.4519384,2127.3,2126.8,1.627]
[1773366305798,1.17725385,2127.2,2126.8,2.8024702]
[1773366306131,0.002,2127.2,2126.8,3.25484416]
[1773366306292,1.62702697,2127.5,2126.8,3.25484416]
[1773366306491,0.002,2127.4,2126.8,3.25484416]
[1773366308397,1.62702697,2127.5,2126.8,3.25484416]
[1773366308720,0.002,2127.4,2126.8,3.25484416]
[1773366309332,0.4539384,2127.4,2126.8,1.627]
[1773366309518,0.4539384,2127.3,2126.8,2.80245948]
[1773366309919,1.62917931,2127.3,2126.8,2.80245948]
[1773366310114,1.62914876,2127.3,2126.8,2.80245948]
[1773366310429,0.002,2127.2,2127.0,0.001]
[1773366310604,0.004,2127.2,2127.0,0.001]
[1773366310924,0.004,2127.2,2126.8,1.628]
[1773366310925,0.4539384,2127.2,2126.8,1.628]
[1773366311108,0.001,2127.1,2126.8,1.628]
[1773366311299,0.001,2127.1,2126.8,2.80347093]
[1773366311497,0.002,2127.2,2126.8,2.80347093]
[1773366311704,0.002,2127.2,2126.8,3.25584489]
[1773366312693,0.4539384,2127.2,2126.8,1.628]
[1773366313013,0.4519384,2127.0,2126.8,1.628]
[1773366313894,1.17641962,2126.9,2126.8,1.628]
[1773366314429,0.001,2126.9,2126.8,1.628]
[1773366315208,0.4519384,2126.7,2126.2,0.001]
[1773366316036,1.17558544,2126.6,2126.2,0.001]
[1773366316235,1.62852384,2126.6,2126.2,0.001]
[1773366317712,0.4519384,2126.4,2126.0,0.001]
[1773366317911,0.4519384,2126.2,2125.8,0.001]
[1773366318174,1.1758619,2126.1,2125.8,0.001]
[1773366318441,2.75280292,2125.9,2125.1,1.62874919]
[1773366318643,2.75280292,2125.9,2125.1,3.24974919]
[1773366319535,0.001,2126.0,2125.2,0.45237396]
[1773366319735,0.4519384,2126.5,2125.7,0.45237396]
[1773366319946,0.4519384,2126.8,2125.9,0.45237396]
[1773366320125,1.17553016,2126.7,2126.1,1.1758619]
[1773366321165,5.17199583,2127.1,2126.2,0.48016855]
[1773366321464,0.47062152,2127.1,2126.2,0.48016855]
[1773366321745,0.002,2127.2,2126.3,0.48016855]
[1773366322352,0.002,2127.2,2126.5,0.48016855]
[1773366322722,0.002,2127.2,2126.6,1.621]
[1773366323537,0.47262152,2127.2,2126.6,1.621]
[1773366324455,0.002,2127.2,2126.7,1.17553016]
[1773366324657,0.002,2127.0,2126.7,1.17553016]
[1773366328453,0.002,2127.0,2126.6,2.79655687]
[1773366328655,0.002,2127.0,2126.6,2.7965756]
[1773366331651,0.002,2127.0,2126.6,2.7965785]
[1773366332240,0.002,2127.0,2126.6,3.27674705]
[1773366333561,0.002,2127.0,2126.6,1.621]
[1773366333758,0.002,2127.0,2126.6,2.79658017]
[1773366334060,0.47262152,2127.0,2126.6,2.79657886]
[1773366334646,0.002,2127.0,2126.6,2.79657886]
[1773366335541,0.47062152,2126.6,2126.0,0.001]
[1773366335750,1.17564072,2126.5,2126.0,0.001]
[1773366335960,0.002,2127.0,2126.0,0.48116855]
[1773366336143,0.002,2127.0,2126.2,0.48016855]
[1773366336343,1.17736837,2127.0,2126.2,0.48016855]
[1773366336745,1.17736837,2127.0,2126.1,2.74138417]
[1773366336746,1.17736837,2127.0,2126.3,2.10216855]
[1773366336934,0.002,2126.8,2126.3,2.10216855]
[1773366337134,0.002,2126.8,2126.3,1.622]
[1773366337362,0.002,2126.8,2126.4,0.48016855]
[1773366338174,0.002,2126.8,2126.4,1.65581467]
[1773366340273,0.47262152,2126.8,2126.1,1.17583073]
[1773366340567,0.47262152,2126.8,2126.2,1.622]
[1773366341468,0.47262152,2126.8,2126.2,2.10216855]
[1773366341667,0.47262152,2126.8,2126.3,0.48016855]
[1773366341668,0.002,2126.8,2126.3,0.48016855]
[1773366342782,0.002,2126.8,2126.4,1.17569601]
[1773366343667,0.002,2126.8,2126.2,2.79777265]
[1773366343668,0.49794094,2126.8,2126.2,2.79777265]
[1773366343872,0.49794094,2126.8,2126.2,1.17577265]
[1773366344041,0.49794094,2126.8,2126.3,1.623]
[1773366344671,0.002,2126.8,2126.3,1.623]
[1773366345171,0.002,2126.8,2126.3,2.79873918]
[1773366345752,0.002,2126.8,2126.3,1.623]
[1773366345962,0.49794094,2126.8,2126.3,1.623]
[1773366346474,0.49794094,2126.8,2126.3,2.79874665]
[1773366347280,0.002,2126.8,2126.3,2.79874665]
[1773366347573,0.002,2126.8,2126.4,0.46395275]
[1773366348161,1.17748031,2126.8,2126.3,2.79874665]
[1773366348561,1.17748031,2126.8,2126.3,3.2626994]
[1773366349478,0.002,2126.8,2126.5,0.001]
[1773366351086,0.002,2127.0,2126.6,0.49715309]
[1773366351261,0.002,2127.2,2126.6,0.49715309]
[1773366351462,0.002,2127.2,2126.8,0.49715309]
[1773366351657,0.002,2127.2,2126.9,1.624]
[1773366352550,0.002,2127.2,2126.9,2.12115309]
[1773366353666,0.002,2127.2,2127.0,1.17536436]
[1773366354066,0.002,2127.2,2127.0,1.67251745]
[1773366354270,0.002,2127.2,2127.0,0.49715309]
[1773366355758,0.002,2127.2,2127.0,1.67250672]
[1773366358198,0.002,2127.2,2127.0,0.49715309]
[1773366358691,0.002,2127.2,2127.0,1.67251324]
[1773366359588,0.002,2127.3,2127.1,0.49715309]
[1773366359888,0.002,2127.3,2127.1,1.67242585]
[1773366360259,0.002,2127.3,2127.0,1.17531671]
[1773366360663,0.002,2127.3,2127.1,0.03031405]
[1773366361097,0.002,2127.4,2127.2,0.49715309]
[1773366361297,4.69845433,2128.4,2127.1,0.04701236]
[1773366361298,1.17453624,2128.5,2127.6,0.49715309]
[1773366361459,1.17453624,2128.5,2127.7,1.627]
[1773366361460,0.48099361,2128.4,2127.7,1.627]
[1773366361666,0.48099361,2128.2,2127.3,0.49715309]
[1773366361864,1.17475682,2128.1,2127.4,2.12515309]
[1773366362172,1.65575043,2128.1,2127.4,3.30029575]
[1773366362481,0.002,2127.5,2127.4,3.30029575]
[1773366363266,0.002,2127.5,2127.4,3.30029645]
[1773366363695,1.17474069,2128.2,2127.5,0.49715309]
[1773366364078,1.17474069,2128.2,2127.6,1.1750329]
[1773366364393,1.65569009,2128.3,2127.7,0.49715309]
[1773366364570,1.17469648,2128.3,2127.7,0.49715309]
[1773366364996,1.65569009,2128.3,2127.8,1.629]
[1773366367095,0.48099361,2128.2,2127.4,1.67226983]
[1773366367315,0.48099361,2128.2,2127.2,0.49715309]
[1773366367617,0.48099361,2127.9,2126.7,0.49715309]
[1773366367911,0.48099361,2127.9,2126.9,0.49715309]
[1773366368508,0.48099361,2127.9,2127.0,1.63]
[1773366369065,0.48099361,2127.7,2127.0,1.63]
[1773366370999,1.1750329,2127.6,2127.0,1.63]
[1773366371196,1.65602651,2127.6,2127.0,1.63]
[1773366371707,0.48099361,2127.5,2126.6,0.49715309]
[1773366371916,0.48099361,2127.5,2126.5,1.17661457]
[1773366371917,0.48099361,2127.3,2126.7,1.63]
[1773366373100,0.48099361,2127.1,2126.7,1.63]
[1773366373681,0.48099361,2127.1,2126.5,0.001]
[1773366374480,0.48099361,2127.1,2127.0,0.001]
[1773366374684,0.48099361,2127.1,2126.5,0.001]
[1773366374886,0.48099361,2126.9,2126.5,0.001]
[1773366375106,0.48099361,2126.7,2126.0,0.001]
[1773366376614,0.48099361,2126.7,2126.1,1.63]
[1773366377189,1.65645591,2126.9,2126.2,0.54418535]
[1773366377388,1.1754623,2126.9,2126.2,0.54418535]
[1773366378410,1.65624746,2127.3,2126.4,0.49715309]
[1773366378719,5.18208862,2127.2,2126.5,0.49715309]
[1773366379297,0.48099361,2127.1,2126.2,0.49715309]
[1773366379503,0.48099361,2127.1,2126.3,0.54418314]
[1773366380228,0.48099361,2127.1,2126.3,0.49715309]
[1773366380592,0.48099361,2127.1,2126.4,1.67602784]
[1773366380995,0.5280126,2127.1,2126.4,1.67602784]
[1773366381692,1.66170011,2127.0,2126.4,1.67602784]
[1773366382723,1.66170011,2127.0,2126.4,1.629]
[1773366382921,0.04701899,2126.9,2126.4,1.67602784]
[1773366384506,1.17547489,2126.8,2126.4,1.67602784]
[1773366385323,4.70135565,2127.1,2126.5,0.47750178]
[1773366385626,0.48633575,2127.0,2126.4,1.629]
[1773366385795,0.48633575,2127.4,2126.5,0.47750178]
[1773366386000,4.7480344,2127.3,2126.6,0.47750178]
[1773366386223,1.1751986,2127.3,2126.6,0.47750178]
[1773366386727,1.1751986,2127.3,2126.7,1.65303194]
[1773366387125,1.1751986,2127.3,2126.7,1.17553016]
[1773366387298,1.1751986,2127.3,2126.8,0.47750178]
[1773366387723,0.48633575,2127.2,2126.5,0.47750178]
[1773366387907,0.53335474,2127.2,2126.5,1.627]
[1773366388295,0.002,2126.9,2126.5,1.627]
[1773366388500,1.17741962,2126.9,2126.5,1.627]
[1773366391242,0.48633575,2126.8,2126.4,1.627]
[1773366392111,0.48633575,2126.8,2126.1,0.47850178]
[1773366392734,1.17553016,2126.7,2126.1,0.47850178]
[1773366392927,1.66186591,2126.7,2126.2,0.04703226]
[1773366393314,1.66186591,2126.7,2126.3,1.626]
[1773366394345,1.66186591,2126.7,2126.1,0.47850178]
[1773366394346,0.48633575,2126.6,2126.1,1.626]
[1773366394712,1.17564072,2126.5,2126.1,1.626]
[1773366394912,1.66197647,2126.5,2126.1,1.626]
[1773366395113,1.17564072,2126.5,2126.1,1.626]
[1773366395730,1.17562413,2126.6,2126.1,2.80184173]
[1773366395920,1.17562413,2126.6,2126.1,2.80184672]
[1773366396135,1.17562413,2126.6,2126.1,3.2793485]
[1773366396329,1.17562413,2126.6,2126.1,2.10350178]
[1773366396534,1.66195988,2126.6,2126.1,1.626]
[1773366397542,1.17562413,2126.6,2126.1,2.10350178]
[1773366399138,5.18861825,2126.7,2126.1,2.10350178]
[1773366401456,5.18861825,2126.7,2126.3,0.001]
[1773366401747,0.002,2126.5,2126.3,0.001]
[1773366402553,0.48833575,2126.5,2126.3,0.001]
[1773366403558,1.17569601,2126.4,2126.3,0.001]
[1773366404230,0.49795966,2126.3,2126.0,0.001]
[1773366405026,0.49795966,2126.3,2125.8,0.001]
[1773366405553,1.67371096,2126.4,2125.8,0.49586503]
[1773366405759,1.17767449,2126.5,2125.8,0.49586503]
[1773366407139,0.002,2126.5,2126.0,0.49486503]
[1773366407657,0.002,2126.5,2126.2,0.49486503]
[1773366407859,0.002,2126.5,2126.3,2.11686503]
[1773366408036,0.002,2126.5,2126.4,0.49486503]
[1773366409856,0.002,2126.5,2126.4,1.67056104]
[1773366410463,0.002,2126.5,2126.4,1.71758888]
[1773366412178,0.002,2126.5,2126.4,1.67056104]
[1773366414664,0.002,2126.5,2126.4,1.71758888]
[1773366418486,0.002,2126.5,2126.4,1.67056104]
[1773366418977,0.002,2126.5,2126.4,0.49486503]
[1773366419138,0.002,2126.5,2126.2,7.19911015]
[1773366419139,0.002,2126.5,2126.2,0.47430445]
[1773366419334,0.002,2126.5,2126.3,1.623]
[1773366419976,0.002,2126.5,2126.2,0.47430445]
[1773366420164,0.002,2126.5,2126.4,1.624]
[1773366420363,0.002,2126.5,2126.1,1.17682327]
[1773366420364,0.49999228,2126.5,2126.1,0.001]
[1773366420559,0.49799228,2126.4,2125.6,1.17710758]
[1773366420982,1.419328,2126.3,2125.6,1.17713667]
[1773366421191,0.49999228,2126.5,2125.9,0.47430445]
[1773366421356,1.67567447,2126.5,2125.9,0.47430445]
[1773366421679,1.67567447,2126.5,2126.0,1.625]
[1773366422351,1.17768219,2126.5,2126.0,1.625]
[1773366422559,1.67567447,2126.5,2126.0,1.625]
[1773366422859,0.49799228,2126.4,2126.0,1.625]
[1773366423264,1.67374358,2126.3,2126.0,1.625]
[1773366425166,0.49799228,2126.2,2125.8,0.001]
[1773366425366,1.1758619,2126.1,2125.8,0.003]
[1773366425774,1.17584734,2126.2,2125.8,0.003]
[1773366426073,1.67383962,2126.2,2125.8,0.003]
[1773366426276,0.49799228,2126.1,2125.8,1.627]
[1773366426598,1.17584734,2126.2,2125.8,1.627]
[1773366427271,1.67383962,2126.2,2126.1,0.001]
[1773366428072,0.49799228,2126.1,2125.6,0.001]
[1773366428293,1.17584734,2126.2,2125.7,0.47630445]
[1773366428467,1.67577018,2126.3,2125.7,0.47430445]
[1773366428669,1.67577018,2126.3,2125.8,0.002]
[1773366428864,0.002,2126.3,2125.8,0.47630445]
[1773366429170,0.002,2126.3,2125.8,0.52334556]
[1773366429373,0.002,2126.5,2126.0,0.47430445]
[1773366429679,0.002,2126.5,2126.2,0.47430445]
[1773366429894,0.002,2126.5,2126.3,0.04703005]
[1773366430095,0.002,2126.5,2126.3,0.5213345]
[1773366430898,0.49999228,2126.5,2126.1,1.626]
[1773366431100,0.49999228,2126.5,2126.1,1.628]
[1773366431403,1.17569601,2126.4,2126.1,1.628]
[1773366432184,1.67567583,2126.5,2126.2,0.04703226]
[1773366433335,0.55677708,2126.4,2125.6,0.47530445]
[1773366433468,0.49799228,2126.2,2125.7,0.02354378]
[1773366434700,0.49799228,2126.2,2125.8,1.627]
[1773366435793,1.1758619,2126.1,2125.8,1.627]
[1773366438119,1.17582313,2126.2,2125.8,2.80300846]
[1773366438345,1.17582313,2126.2,2125.9,0.02354157]
[1773366438508,1.17582313,2126.2,2125.8,2.80300846]
[1773366438509,1.17582313,2126.2,2125.8,1.627]
[1773366439518,0.49799228,2126.1,2125.6,0.001]
[1773366440112,1.17591721,2126.0,2125.6,0.001]
[1773366440401,1.17591721,2126.0,2125.9,0.001]
[1773366440602,1.17591721,2126.0,2125.6,0.001]
[1773366440603,0.47736104,2125.9,2125.6,0.001]
[1773366441431,1.17790008,2126.1,2125.6,0.001]
[1773366441607,0.47736104,2126.0,2125.6,0.001]
[1773366442238,1.65327923,2126.0,2125.6,1.1771385]
[1773366442534,1.65327923,2126.0,2125.6,0.001]
[1773366443335,1.65327923,2126.0,2125.6,0.02455263]
[1773366443632,1.65327923,2126.0,2125.6,0.001]
[1773366445732,0.47736104,2125.9,2125.6,0.001]
[1773366446115,0.47736104,2125.9,2125.3,0.02355928]
[1773366446509,0.47736104,2125.9,2125.1,1.17638785]
[1773366446510,0.47736104,2125.8,2125.1,1.17638785]
[1773366446710,0.47736104,2125.6,2125.1,1.17638785]
[1773366447530,0.47736104,2125.6,2125.2,1.626]
[1773366448119,1.65525998,2126.1,2125.3,0.49670221]
[1773366448317,0.5361569,2126.0,2125.3,0.49670221]
[1773366448708,0.002,2126.1,2125.5,0.47312744]
[1773366448931,0.002,2126.1,2125.6,0.49668118]
[1773366451448,0.002,2126.1,2125.7,1.64921061]
[1773366451660,0.002,2126.3,2125.8,0.49667454]
[1773366451811,0.002,2126.3,2125.9,2.09812744]
[1773366452237,0.47736104,2126.2,2125.4,0.47312744]
[1773366452434,0.05879309,2126.1,2125.6,0.47312744]
[1773366452634,0.47736104,2126.2,2125.7,0.02355042]
[1773366452818,0.05879309,2126.1,2125.6,0.47312744]
[1773366453013,1.17780205,2126.3,2125.7,0.49667786]
[1773366453230,1.17780205,2126.3,2125.8,0.001]
[1773366453440,0.002,2126.0,2125.8,0.001]
[1773366460664,0.06079033,2126.2,2125.8,0.001]
[1773366460829,0.002,2126.3,2125.9,0.47312744]
[1773366461148,0.002,2126.3,2126.1,0.47312744]
[1773366463247,0.002,2126.3,2126.2,1.1758066]
[1773366465973,0.002,2126.3,2126.1,0.47312744]
[1773366466265,0.20963547,2126.1,2125.8,0.001]
[1773366466864,0.20963547,2126.1,2126.0,0.001]
[1773366467060,0.21163547,2126.1,2126.0,0.001]
[1773366467464,1.38555268,2126.0,2125.8,0.001]
[1773366467664,0.20963547,2125.8,2125.5,0.001]
[1773366467970,1.38555268,2126.0,2125.5,0.001]
[1773366468262,4.70508729,2126.3,2125.6,0.47281503]
[1773366468263,0.002,2126.3,2125.6,0.47281503]
[1773366468467,1.17775626,2126.3,2125.8,0.47281503]
[1773366468647,0.20963547,2126.2,2125.5,0.002]
[1773366468848,0.26842856,2126.1,2125.5,1.65100886]
[1773366469043,0.26842856,2126.1,2125.5,1.20174868]
[1773366469364,0.26842856,2126.1,2125.6,0.47281503]
[1773366469730,1.44432319,2126.1,2125.6,1.64891376]
[1773366470367,1.3855301,2126.1,2125.6,1.64891376]
[1773366470971,1.3855301,2126.1,2125.6,1.64892306]
[1773366471561,1.3855301,2126.1,2125.6,0.47281503]
[1773366471764,0.20963547,2126.0,2125.5,0.002]
[1773366471964,0.20963547,2126.0,2125.6,0.001]
[1773366472139,0.20963547,2126.0,2125.5,0.001]
[1773366473232,0.20963547,2126.0,2125.6,0.001]
[1773366473849,1.38560799,2125.9,2125.5,0.001]
[1773366474049,1.38560799,2125.9,2125.5,0.002]
[1773366474658,0.20963547,2125.8,2125.5,0.002]
[1773366475239,0.20963547,2125.8,2125.5,0.001]
[1773366475756,1.17597252,2125.9,2125.5,0.002]
[1773366476364,1.38560799,2125.9,2125.5,0.002]
[1773366476736,1.17597252,2125.9,2125.5,0.002]
[1773366477374,1.38560799,2125.9,2125.5,0.002]
[1773366477757,0.20763547,2125.6,2125.3,0.001]
[1773366478068,1.3838256,2125.6,2125.3,0.001]
[1773366479145,0.20763547,2125.5,2125.3,0.001]
[1773366480052,1.17624917,2125.4,2125.3,0.001]
[1773366480777,1.17624917,2125.4,2124.7,0.4736625]
[1773366480778,0.1984614,2125.3,2124.7,0.4736625]
[1773366480972,2.50216555,2125.3,2124.7,0.4736625]
[1773366481781,1.17624917,2125.4,2124.8,0.4736625]
[1773366481782,1.37471057,2125.4,2124.8,0.4736625]
[1773366482478,1.17624917,2125.4,2124.9,0.4736625]
[1773366482682,0.05880969,2125.5,2125.1,0.4736625]
[1773366482878,0.05880969,2125.5,2125.0,1.625]
[1773366482879,0.1984614,2125.4,2125.0,1.625]
[1773366483081,0.05880692,2125.6,2124.1,7.22356019]
[1773366483082,2.50216555,2125.3,2124.7,1.17661776]
[1773366483262,2.50216555,2125.3,2124.7,1.65028026]
[1773366483464,0.1984614,2125.2,2124.7,0.4736625]
[1773366483861,0.1984614,2125.2,2124.5,1.65037299]
[1773366484071,0.1984614,2125.2,2124.6,0.4736625]
[1773366484266,0.1984614,2125.2,2124.6,2.0986625]
[1773366484476,1.17641522,2125.1,2124.6,2.0986625]
[1773366484785,1.17641522,2125.1,2124.7,0.4736625]
[1773366485784,0.92297563,2125.0,2124.6,1.625]
[1773366486283,1.12143703,2125.0,2124.6,1.625]
[1773366486688,1.17652595,2124.9,2124.6,1.625]
[1773366487282,1.17652595,2124.9,2124.6,2.0986625]
[1773366487482,1.17643126,2125.1,2124.6,3.29895092]
[1773366487672,4.70539192,2125.3,2124.7,0.4736625]
[1773366488769,4.70539192,2125.3,2124.7,1.65027445]
[1773366489084,4.70539192,2125.3,2124.8,0.4736625]
[1773366489475,1.17630452,2125.3,2124.8,0.4736625]
[1773366490787,1.37475231,2125.4,2124.8,0.4736625]
[1773366490990,4.70486078,2125.5,2124.8,0.4736625]
[1773366490991,0.05881522,2125.3,2125.0,0.4736625]
[1773366491187,0.05881245,2125.4,2125.0,0.4736625]
[1773366491387,0.1984614,2125.3,2124.8,0.4736625]
[1773366491589,0.25727939,2125.2,2124.8,0.001]
[1773366491797,0.002,2125.1,2124.8,0.001]
[1773366492286,0.2004614,2125.1,2124.8,0.001]
[1773366492489,0.05882352,2125.0,2124.8,0.001]
[1773366492987,1.17652595,2124.9,2124.8,0.001]
[1773366493700,0.002,2125.1,2124.8,0.4746625]
[1773366495897,0.002,2125.1,2124.8,1.65120044]
[1773366496411,0.002,2125.1,2124.9,0.4736625]
[1773366497214,0.002,2125.1,2124.8,0.001]
[1773366498298,0.03722773,2125.1,2124.8,0.001]
[1773366499109,0.002,2125.1,2124.8,0.4746625]
[1773366500317,0.002,2125.1,2125.0,0.4736625]
[1773366502292,0.03722773,2125.3,2125.1,0.49971961]
[1773366502523,0.002,2125.3,2125.1,0.49971961]
[1773366503998,1.17832263,2125.3,2124.9,1.67620291]
[1773366504194,1.17832263,2125.3,2124.9,0.49971961]
[1773366504397,1.21158932,2125.2,2124.8,0.50071961]
[1773366505424,1.21158932,2125.2,2125.0,0.001]
[1773366505941,0.002,2125.1,2125.0,0.001]
[1773366506814,0.2024614,2125.1,2125.0,0.001]
[1773366507805,0.2024614,2125.1,2124.6,1.625]
[1773366508011,0.19066748,2124.9,2124.6,1.625]
[1773366508402,1.17658132,2124.8,2124.6,1.625]
[1773366508603,1.3672488,2124.8,2124.6,1.625]
[1773366510221,1.3672488,2124.8,2124.5,0.001]
[1773366511226,0.19066748,2124.7,2124.5,0.001]
[1773366512205,0.19066748,2124.7,2124.3,0.50071961]
[1773366512602,2.30730106,2125.0,2124.3,1.67753873]
[1773366512803,1.40242116,2124.9,2124.4,0.49971961]
[1773366513737,0.19066748,2124.8,2124.4,0.49971961]
[1773366514106,2.49796854,2124.6,2124.3,0.001]
[1773366514633,1.17674746,2124.5,2124.3,0.001]
[1773366514834,1.17656511,2124.9,2124.4,0.49971961]
[1773366515038,1.21179284,2124.9,2124.4,0.49971961]
[1773366515844,0.03522773,2124.9,2124.4,0.49971961]
[1773366516018,0.002,2125.1,2124.6,0.49971961]
[1773366516338,1.2136456,2125.1,2124.6,0.49971961]
[1773366516737,1.40431308,2125.1,2124.6,1.67637753]
[1773366517232,0.03722773,2125.1,2124.7,0.49971961]
[1773366517431,1.21364612,2125.1,2124.7,0.49971961]
[1773366518036,1.17841839,2125.1,2124.7,0.49971961]
[1773366518941,0.002,2125.1,2124.7,0.49971961]
[1773366519121,0.002,2124.9,2124.6,0.001]
[1773366519608,0.03722773,2124.9,2124.6,0.001]
[1773366520770,0.22789521,2124.9,2124.4,0.001]
[1773366521036,1.17669208,2124.6,2124.4,0.001]
[1773366521241,1.21191981,2124.6,2124.4,0.001]
[1773366523051,0.19066748,2124.5,2124.1,0.001]
[1773366523238,3.48534671,2124.6,2124.1,0.50071961]
[1773366523406,0.03522773,2124.6,2124.2,0.48752914]
[1773366524055,0.03522773,2124.6,2124.3,0.48752914]
[1773366524231,1.17658264,2124.8,2124.3,0.48752914]
[1773366525139,0.002,2124.9,2124.3,0.48752914]
[1773366525441,0.002,2124.9,2124.4,0.48752914]
[1773366526525,0.002,2124.9,2124.4,0.53460125]
[1773366527423,0.002,2124.9,2124.6,0.48752914]
[1773366528485,0.03722773,2124.9,2124.6,0.48752914]
[1773366529916,1.21376728,2124.9,2124.6,0.48752914]
[1773366530119,1.21376728,2124.9,2124.4,1.66432483]
[1773366530317,1.21376728,2124.9,2124.5,0.48752914]
[1773366530717,1.21376728,2124.9,2124.5,2.10552914]
[1773366531530,2.49932211,2124.8,2124.5,1.618]
[1773366531840,0.03722773,2124.7,2124.5,1.618]
[1773366532013,1.17669208,2124.6,2124.5,1.618]
[1773366532220,0.002,2124.7,2124.6,0.4867301]
[1773366535326,0.002,2124.7,2124.5,1.618]
[1773366535740,0.002,2124.7,2124.5,1.66347684]
[1773366535950,0.002,2124.7,2124.6,1.618]
[1773366537258,0.002,2124.7,2124.6,2.1047301]
[1773366538765,0.002,2124.7,2124.4,0.4877301]
[1773366538936,0.002,2124.7,2124.6,1.618]
[1773366540464,0.002,2124.7,2124.4,0.001]
[1773366540465,0.18323054,2124.7,2124.4,0.001]
[1773366540631,0.21845827,2124.7,2124.4,0.001]
[1773366541473,0.03722773,2124.7,2124.4,0.001]
[1773366541683,0.03722773,2124.7,2124.5,0.4867301]
[1773366541684,0.002,2124.7,2124.5,0.4867301]
[1773366541968,1.36177028,2124.9,2124.4,0.001]
[1773366542161,0.18323054,2124.7,2124.4,0.001]
[1773366543769,1.17669208,2124.6,2124.4,0.001]
[1773366543954,1.21191981,2124.6,2124.4,0.001]
[1773366544657,1.39515035,2124.6,2124.5,0.001]
[1773366544846,1.39515035,2124.6,2124.1,1.619]
[1773366545043,1.21191981,2124.6,2124.1,1.619]
[1773366545266,0.18323054,2124.5,2124.3,0.001]
[1773366546071,1.17680286,2124.4,2124.3,0.001]
[1773366546278,1.17680286,2124.4,2124.1,1.619]
[1773366546279,1.3600334,2124.4,2124.1,1.619]
[1773366546474,1.36000327,2124.5,2123.9,0.53381329]
[1773366546775,1.17677273,2124.5,2123.9,0.53381329]
[1773366546987,1.17677273,2124.5,2123.9,0.4867301]
[1773366548075,0.18323054,2124.4,2123.9,0.4867301]
[1773366548380,4.70856571,2124.7,2124.0,0.4867301]
[1773366548381,0.002,2124.7,2124.0,0.4867301]
[1773366548547,1.17669594,2124.6,2124.0,0.4867301]
[1773366548874,1.21192367,2124.6,2124.0,0.4867301]
[1773366550277,1.21192367,2124.6,2124.1,0.4867301]
[1773366550748,1.39515421,2124.6,2124.1,0.4867301]
[1773366551657,2.31864593,2124.6,2124.1,0.4867301]
[1773366552983,2.31864593,2124.6,2124.1,1.66369431]
[1773366553976,2.31864593,2124.6,2124.1,0.4867301]
[1773366554883,2.31864593,2124.6,2124.1,1.6636961]
[1773366556279,0.03522773,2124.6,2124.2,0.4867301]
[1773366556575,0.002,2124.7,2124.2,0.4867301]
[1773366556963,0.002,2124.7,2124.4,0.4867301]
[1773366558362,0.002,2124.5,2124.4,0.4867301]
[1773366558858,0.002,2124.7,2124.4,0.4867301]
[1773366559059,0.002,2124.7,2124.6,0.4867301]
[1773366559258,0.002,2124.7,2124.6,2.1027301]
[1773366561388,0.002,2124.7,2124.6,3.27942218]
[1773366561587,0.002,2124.9,2124.7,0.49416638]
[1773366561888,0.002,2125.1,2124.7,0.49416638]
[1773366562694,0.03722773,2125.1,2124.7,0.49416638]
[1773366562863,0.002,2125.1,2124.7,0.49416638]
[1773366563188,1.21367632,2125.1,2124.7,0.49416638]
[1773366563490,0.002,2125.1,2124.9,0.49416638]
[1773366564056,0.002,2125.1,2124.9,1.6706745]
[1773366564359,0.002,2125.1,2125.0,0.49416638]
[1773366564559,0.002,2125.4,2125.0,0.49416638]
[1773366564799,1.21347791,2125.4,2125.0,0.49416638]
[1773366565097,0.18523054,2125.2,2124.6,0.49416638]
[1773366565273,2.52741899,2125.1,2124.6,2.11016638]
[1773366565594,1.17647058,2125.0,2124.6,2.11016638]
[1773366565762,0.03522773,2124.9,2124.6,2.11016638]
[1773366567081,0.03522773,2124.9,2124.4,0.49416638]
[1773366567663,1.17658132,2124.8,2124.4,0.49416638]
[1773366568286,1.17658132,2124.8,2124.5,1.616]
[1773366568587,4.74151068,2124.9,2124.5,1.616]
[1773366568588,0.03522773,2124.9,2124.5,1.616]
[1773366568793,1.17650677,2125.0,2124.6,0.49416638]
[1773366569292,0.03522773,2124.9,2124.6,0.49416638]
[1773366569689,1.17647579,2125.0,2124.7,0.49416638]
[1773366570197,0.03522773,2124.9,2124.5,3.28687911]
[1773366570566,0.03522773,2124.9,2124.5,3.28689526]
[1773366571193,0.03522773,2124.9,2124.5,2.11016638]
[1773366571898,1.17658132,2124.8,2124.6,0.001]
[1773366572099,1.17858132,2124.8,2124.6,0.001]
[1773366572580,0.002,2124.8,2124.6,0.001]
[1773366574497,0.002,2124.8,2124.6,0.49516638]
[1773366575378,0.002,2124.8,2124.6,0.54221638]
[1773366577181,0.002,2124.8,2124.6,1.71890291]
[1773366578511,0.002,2124.8,2124.6,0.54221638]
[1773366578975,0.002,2124.8,2124.6,1.71890585]
[1773366579305,0.002,2124.8,2124.6,0.54221638]
[1773366579506,0.002,2124.8,2124.6,0.49516638]
[1773366579802,1.21369841,2125.0,2124.6,0.49516638]
[1773366579978,1.17638142,2125.2,2124.7,0.49416638]
[1773366580303,1.21369841,2125.1,2124.7,0.49416638]
[1773366582307,0.002,2125.3,2124.9,0.49416638]
[1773366582478,0.002,2125.3,2125.0,1.618]
[1773366582678,0.002,2125.3,2125.1,0.49416638]
[1773366583520,1.17830738,2125.3,2125.1,0.49416638]
[1773366583804,1.17830738,2125.3,2125.0,1.618]
[1773366585213,1.17830738,2125.3,2125.0,2.0806617]